{"text_format":"3","workbook":"xlsx","n_sheets":1,"sheets":["Osobni mjesečni proračun"],"read":"whole","date_system":"1900"}

{"sheet":"Osobni mjesečni proračun","index":0,"n_rows":64,"n_cols":10,"rows_kept":64,"merged":[[1,1,1,9],[2,1,2,9],[4,1,6,1],[4,2,4,3],[4,6,5,8],[4,9,5,9],[5,2,5,3],[6,2,6,3],[6,6,7,8],[6,9,7,9],[7,1,9,1],[7,2,7,3],[8,2,8,3],[8,6,9,8],[8,9,9,9],[9,2,9,3],[22,6,22,9],[23,1,23,4],[31,6,31,9],[33,1,33,4],[38,6,38,9],[40,1,40,4],[44,6,44,9],[46,1,46,4],[50,6,50,9],[54,1,54,4],[57,6,57,9],[58,6,59,8],[58,9,59,9],[60,6,61,8],[60,9,61,9],[62,6,63,8],[62,9,63,9]]}
[]
[null,"Osobni mjesečni proračun"]
[]
[]
[null,"PREDVIĐENI MJESEČNI PRIHOD","Prihod 1",null,{"v":2500,"d":"2,500 kn"},null,"PROJICIRANO STANJE (projicirani prihodi minus troškovi)",null,null,{"$f":"E7-J59","v":{"v":940,"d":"940 kn"}}]
[null,null,"Dodatni prihodi",null,{"v":500,"d":"500 kn"}]
[null,null,"Ukupni mjesečni prihodi",null,{"$f":"SUM(E5:E6)","v":{"v":3000,"d":"3,000 kn"}},null,"STVARNO STANJE (stvarni prihodi minus troškovi)",null,null,{"$f":"E10-J61","v":{"v":960,"d":"960 kn"}}]
[null,"STVARNI MJESEČNI PRORAČUN","Prihod 1",null,{"v":2500,"d":"2,500 kn"}]
[null,null,"Dodatni prihodi",null,{"v":500,"d":"500 kn"},null,"RAZLIKA (stvarno minus projicirano)",null,null,{"$f":"J7-J5","v":{"v":20,"d":"20 kn"}}]
[null,null,"Ukupni mjesečni prihodi",null,{"$f":"SUM(E8:E9)","v":{"v":3000,"d":"3,000 kn"}}]
[]
[null,"STANOVANJE","Predviđeni trošak","Stvarni trošak","Razlika",null,"ZABAVA","Predviđeni trošak","Stvarni trošak","Razlika"]
[null,"Hipoteka ili najamnina",{"v":1500,"d":"1,500 kn"},{"v":1400,"d":"1,400 kn"},{"$f":"Tablica1[[#This Row],[Predviđeni trošak]]-Tablica1[[#This Row],[Stvarni trošak]]","v":{"v":100,"d":"100 kn"}},null,"Video/DVD",{"v":0,"d":"0 kn"},{"v":50,"d":"50 kn"},{"$f":"Tablica2[[#This Row],[Predviđeni trošak]]-Tablica2[[#This Row],[Stvarni trošak]]","v":{"v":-50,"d":"-50 kn"}}]
[null,"Telefon",{"v":60,"d":"60 kn"},{"v":100,"d":"100 kn"},{"$f":"Tablica1[[#This Row],[Predviđeni trošak]]-Tablica1[[#This Row],[Stvarni trošak]]","v":{"v":-40,"d":"-40 kn"}},null,"CD-ovi",null,null,{"$f":"Tablica2[[#This Row],[Predviđeni trošak]]-Tablica2[[#This Row],[Stvarni trošak]]","v":{"v":0,"d":"0 kn"}}]
[null,"Struja",{"v":50,"d":"50 kn"},{"v":60,"d":"60 kn"},{"$f":"Tablica1[[#This Row],[Predviđeni trošak]]-Tablica1[[#This Row],[Stvarni trošak]]","v":{"v":-10,"d":"-10 kn"}},null,"Filmovi",null,null,{"$f":"Tablica2[[#This Row],[Predviđeni trošak]]-Tablica2[[#This Row],[Stvarni trošak]]","v":{"v":0,"d":"0 kn"}}]
[null,"Plin",{"v":200,"d":"200 kn"},{"v":180,"d":"180 kn"},{"$f":"Tablica1[[#This Row],[Predviđeni trošak]]-Tablica1[[#This Row],[Stvarni trošak]]","v":{"v":20,"d":"20 kn"}},null,"Koncerti",null,null,{"$f":"Tablica2[[#This Row],[Predviđeni trošak]]-Tablica2[[#This Row],[Stvarni trošak]]","v":{"v":0,"d":"0 kn"}}]
[null,"Voda i komunalna naknada",null,null,{"$f":"Tablica1[[#This Row],[Predviđeni trošak]]-Tablica1[[#This Row],[Stvarni trošak]]","v":{"v":0,"d":"0 kn"}},null,"Sportska događanja",null,null,{"$f":"Tablica2[[#This Row],[Predviđeni trošak]]-Tablica2[[#This Row],[Stvarni trošak]]","v":{"v":0,"d":"0 kn"}}]
[null,"Kabelska TV",null,null,{"$f":"Tablica1[[#This Row],[Predviđeni trošak]]-Tablica1[[#This Row],[Stvarni trošak]]","v":{"v":0,"d":"0 kn"}},null,"Kazalište",null,null,{"$f":"Tablica2[[#This Row],[Predviđeni trošak]]-Tablica2[[#This Row],[Stvarni trošak]]","v":{"v":0,"d":"0 kn"}}]
[null,"Odvoz smeća",null,null,{"$f":"Tablica1[[#This Row],[Predviđeni trošak]]-Tablica1[[#This Row],[Stvarni trošak]]","v":{"v":0,"d":"0 kn"}},null,"Drugo",null,null,{"$f":"Tablica2[[#This Row],[Predviđeni trošak]]-Tablica2[[#This Row],[Stvarni trošak]]","v":{"v":0,"d":"0 kn"}}]
[null,"Održavanja i popravci",null,null,{"$f":"Tablica1[[#This Row],[Predviđeni trošak]]-Tablica1[[#This Row],[Stvarni trošak]]","v":{"v":0,"d":"0 kn"}},null,"Drugo",null,null,{"$f":"Tablica2[[#This Row],[Predviđeni trošak]]-Tablica2[[#This Row],[Stvarni trošak]]","v":{"v":0,"d":"0 kn"}}]
[null,"Potrepštine",null,null,{"$f":"Tablica1[[#This Row],[Predviđeni trošak]]-Tablica1[[#This Row],[Stvarni trošak]]","v":{"v":0,"d":"0 kn"}},null,"Drugo",null,null,{"$f":"Tablica2[[#This Row],[Predviđeni trošak]]-Tablica2[[#This Row],[Stvarni trošak]]","v":{"v":0,"d":"0 kn"}}]
[null,"Ostalo",null,null,{"$f":"Tablica1[[#This Row],[Predviđeni trošak]]-Tablica1[[#This Row],[Stvarni trošak]]","v":{"v":0,"d":"0 kn"}},null,"Zbroj",{"$f":"SUBTOTAL(109,Tablica2[Predviđeni trošak])","v":{"v":0,"d":"0 kn"}},{"$f":"SUBTOTAL(109,Tablica2[Stvarni trošak])","v":{"v":50,"d":"50 kn"}},{"$f":"SUBTOTAL(109,Tablica2[Razlika])","v":{"v":-50,"d":"-50 kn"}}]
[null,"Zbroj",{"$f":"SUBTOTAL(109,Tablica1[Predviđeni trošak])","v":{"v":1810,"d":"1,810 kn"}},{"$f":"SUBTOTAL(109,Tablica1[Stvarni trošak])","v":{"v":1740,"d":"1,740 kn"}},{"$f":"SUBTOTAL(109,Tablica1[Razlika])","v":{"v":70,"d":"70 kn"}}]
[{"$nulls":6},"KREDITI","Predviđeni trošak","Stvarni trošak","Razlika"]
[null,"PRIJEVOZ","Predviđeni trošak","Stvarni trošak","Razlika",null,"Osobne potrebe",null,null,{"$f":"Tablica8[[#This Row],[Predviđeni trošak]]-Tablica8[[#This Row],[Stvarni trošak]]","v":{"v":0,"d":"0 kn"}}]
[null,"Troškovi vozila",{"v":250,"d":"250 kn"},{"v":250,"d":"250 kn"},{"$f":"Tablica3[[#This Row],[Predviđeni trošak]]-Tablica3[[#This Row],[Stvarni trošak]]","v":{"v":0,"d":"0 kn"}},null,"Studentski kredit",null,null,{"$f":"Tablica8[[#This Row],[Predviđeni trošak]]-Tablica8[[#This Row],[Stvarni trošak]]","v":{"v":0,"d":"0 kn"}}]
[null,"Autobus/taksi",null,null,{"$f":"Tablica3[[#This Row],[Predviđeni trošak]]-Tablica3[[#This Row],[Stvarni trošak]]","v":{"v":0,"d":"0 kn"}},null,"Kreditna kartica",null,null,{"$f":"Tablica8[[#This Row],[Predviđeni trošak]]-Tablica8[[#This Row],[Stvarni trošak]]","v":{"v":0,"d":"0 kn"}}]
[null,"Osiguranje",null,null,{"$f":"Tablica3[[#This Row],[Predviđeni trošak]]-Tablica3[[#This Row],[Stvarni trošak]]","v":{"v":0,"d":"0 kn"}},null,"Kreditna kartica",null,null,{"$f":"Tablica8[[#This Row],[Predviđeni trošak]]-Tablica8[[#This Row],[Stvarni trošak]]","v":{"v":0,"d":"0 kn"}}]
[null,"Registracija",null,null,{"$f":"Tablica3[[#This Row],[Predviđeni trošak]]-Tablica3[[#This Row],[Stvarni trošak]]","v":{"v":0,"d":"0 kn"}},null,"Kreditna kartica",null,null,{"$f":"Tablica8[[#This Row],[Predviđeni trošak]]-Tablica8[[#This Row],[Stvarni trošak]]","v":{"v":0,"d":"0 kn"}}]
[null,"Gorivo",null,null,{"$f":"Tablica3[[#This Row],[Predviđeni trošak]]-Tablica3[[#This Row],[Stvarni trošak]]","v":{"v":0,"d":"0 kn"}},null,"Ostalo",null,null,{"$f":"Tablica8[[#This Row],[Predviđeni trošak]]-Tablica8[[#This Row],[Stvarni trošak]]","v":{"v":0,"d":"0 kn"}}]
[null,"Održavanje",null,null,{"$f":"Tablica3[[#This Row],[Predviđeni trošak]]-Tablica3[[#This Row],[Stvarni trošak]]","v":{"v":0,"d":"0 kn"}},null,"Zbroj",{"$f":"SUBTOTAL(109,Tablica8[Predviđeni trošak])","v":{"v":0,"d":"0 kn"}},{"$f":"SUBTOTAL(109,Tablica8[Stvarni trošak])","v":{"v":0,"d":"0 kn"}},{"$f":"SUBTOTAL(109,Tablica8[Razlika])","v":{"v":0,"d":"0 kn"}}]
[null,"Ostalo",null,null,{"$f":"Tablica3[[#This Row],[Predviđeni trošak]]-Tablica3[[#This Row],[Stvarni trošak]]","v":{"v":0,"d":"0 kn"}}]
[null,"Zbroj",{"$f":"SUBTOTAL(109,Tablica3[Predviđeni trošak])","v":{"v":250,"d":"250 kn"}},{"$f":"SUBTOTAL(109,Tablica3[Stvarni trošak])","v":{"v":250,"d":"250 kn"}},{"$f":"SUBTOTAL(109,Tablica3[Razlika])","v":{"v":0,"d":"0 kn"}},null,"POREZI","Predviđeni trošak","Stvarni trošak","Razlika"]
[{"$nulls":6},"Savezni",null,null,{"$f":"Tablica9[[#This Row],[Predviđeni trošak]]-Tablica9[[#This Row],[Stvarni trošak]]","v":{"v":0,"d":"0 kn"}}]
[null,"OSIGURANJE","Predviđeni trošak","Stvarni trošak","Razlika",null,"Državni",null,null,{"$f":"Tablica9[[#This Row],[Predviđeni trošak]]-Tablica9[[#This Row],[Stvarni trošak]]","v":{"v":0,"d":"0 kn"}}]
[null,"Kuća",null,null,{"$f":"Tablica4[[#This Row],[Predviđeni trošak]]-Tablica4[[#This Row],[Stvarni trošak]]","v":{"v":0,"d":"0 kn"}},null,"Lokalni",null,null,{"$f":"Tablica9[[#This Row],[Predviđeni trošak]]-Tablica9[[#This Row],[Stvarni trošak]]","v":{"v":0,"d":"0 kn"}}]
[null,"Zdravstveno osiguranje",null,null,{"$f":"Tablica4[[#This Row],[Predviđeni trošak]]-Tablica4[[#This Row],[Stvarni trošak]]","v":{"v":0,"d":"0 kn"}},null,"Ostalo",null,null,{"$f":"Tablica9[[#This Row],[Predviđeni trošak]]-Tablica9[[#This Row],[Stvarni trošak]]","v":{"v":0,"d":"0 kn"}}]
[null,"Životno osiguranje",null,null,{"$f":"Tablica4[[#This Row],[Predviđeni trošak]]-Tablica4[[#This Row],[Stvarni trošak]]","v":{"v":0,"d":"0 kn"}},null,"Zbroj",{"$f":"SUBTOTAL(109,Tablica9[Predviđeni trošak])","v":{"v":0,"d":"0 kn"}},{"$f":"SUBTOTAL(109,Tablica9[Stvarni trošak])","v":{"v":0,"d":"0 kn"}},{"$f":"SUBTOTAL(109,Tablica9[Razlika])","v":{"v":0,"d":"0 kn"}}]
[null,"Ostalo",null,null,{"$f":"Tablica4[[#This Row],[Predviđeni trošak]]-Tablica4[[#This Row],[Stvarni trošak]]","v":{"v":0,"d":"0 kn"}}]
[null,"Zbroj",{"$f":"SUBTOTAL(109,Tablica4[Predviđeni trošak])","v":{"v":0,"d":"0 kn"}},{"$f":"SUBTOTAL(109,Tablica4[Stvarni trošak])","v":{"v":0,"d":"0 kn"}},{"$f":"SUBTOTAL(109,Tablica4[Razlika])","v":{"v":0,"d":"0 kn"}},null,"ŠTEDNJA ILI ULAGANJA","Predviđeni trošak","Stvarni trošak","Razlika"]
[{"$nulls":6},"Mirovinska štednja",null,null,{"$f":"Tablica10[[#This Row],[Predviđeni trošak]]-Tablica10[[#This Row],[Stvarni trošak]]","v":{"v":0,"d":"0 kn"}}]
[null,"HRANA","Predviđeni trošak","Stvarni trošak","Razlika",null,"Investicijski račun",null,null,{"$f":"Tablica10[[#This Row],[Predviđeni trošak]]-Tablica10[[#This Row],[Stvarni trošak]]","v":{"v":0,"d":"0 kn"}}]
[null,"Namirnice",null,null,{"$f":"Tablica5[[#This Row],[Predviđeni trošak]]-Tablica5[[#This Row],[Stvarni trošak]]","v":{"v":0,"d":"0 kn"}},null,"Drugo",null,null,{"$f":"Tablica10[[#This Row],[Predviđeni trošak]]-Tablica10[[#This Row],[Stvarni trošak]]","v":{"v":0,"d":"0 kn"}}]
[null,"Restorani",null,null,{"$f":"Tablica5[[#This Row],[Predviđeni trošak]]-Tablica5[[#This Row],[Stvarni trošak]]","v":{"v":0,"d":"0 kn"}},null,"Zbroj",{"$f":"SUBTOTAL(109,Tablica10[Predviđeni trošak])","v":{"v":0,"d":"0 kn"}},{"$f":"SUBTOTAL(109,Tablica10[Stvarni trošak])","v":{"v":0,"d":"0 kn"}},{"$f":"SUBTOTAL(109,Tablica10[Razlika])","v":{"v":0,"d":"0 kn"}}]
[null,"Ostalo",null,null,{"$f":"Tablica5[[#This Row],[Predviđeni trošak]]-Tablica5[[#This Row],[Stvarni trošak]]","v":{"v":0,"d":"0 kn"}}]
[null,"Zbroj",{"$f":"SUBTOTAL(109,Tablica5[Predviđeni trošak])","v":{"v":0,"d":"0 kn"}},{"$f":"SUBTOTAL(109,Tablica5[Stvarni trošak])","v":{"v":0,"d":"0 kn"}},{"$f":"SUBTOTAL(109,Tablica5[Razlika])","v":{"v":0,"d":"0 kn"}},null,"DAROVI I DONACIJE","Predviđeni trošak","Stvarni trošak","Razlika"]
[{"$nulls":6},"Dobrotvorna udruga 1",null,null,{"$f":"Tablica11[[#This Row],[Predviđeni trošak]]-Tablica11[[#This Row],[Stvarni trošak]]","v":{"v":0,"d":"0 kn"}}]
[null,"KUĆNI LJUBIMCI","Predviđeni trošak","Stvarni trošak","Razlika",null,"Dobrotvorna udruga 2",null,null,{"$f":"Tablica11[[#This Row],[Predviđeni trošak]]-Tablica11[[#This Row],[Stvarni trošak]]","v":{"v":0,"d":"0 kn"}}]
[null,"Hrana",null,null,{"$f":"Tablica6[[#This Row],[Predviđeni trošak]]-Tablica6[[#This Row],[Stvarni trošak]]","v":{"v":0,"d":"0 kn"}},null,"Dobrotvorna udruga 3",null,null,{"$f":"Tablica11[[#This Row],[Predviđeni trošak]]-Tablica11[[#This Row],[Stvarni trošak]]","v":{"v":0,"d":"0 kn"}}]
[null,"Liječnički troškovi",null,null,{"$f":"Tablica6[[#This Row],[Predviđeni trošak]]-Tablica6[[#This Row],[Stvarni trošak]]","v":{"v":0,"d":"0 kn"}},null,"Zbroj",{"$f":"SUBTOTAL(109,Tablica11[Predviđeni trošak])","v":{"v":0,"d":"0 kn"}},{"$f":"SUBTOTAL(109,Tablica11[Stvarni trošak])","v":{"v":0,"d":"0 kn"}},{"$f":"SUBTOTAL(109,Tablica11[Razlika])","v":{"v":0,"d":"0 kn"}}]
[null,"Njega ljubimaca",null,null,{"$f":"Tablica6[[#This Row],[Predviđeni trošak]]-Tablica6[[#This Row],[Stvarni trošak]]","v":{"v":0,"d":"0 kn"}}]
[null,"Igračke",null,null,{"$f":"Tablica6[[#This Row],[Predviđeni trošak]]-Tablica6[[#This Row],[Stvarni trošak]]","v":{"v":0,"d":"0 kn"}},null,"PRAVNI TROŠKOVI","Predviđeni trošak","Stvarni trošak","Razlika"]
[null,"Ostalo",null,null,{"$f":"Tablica6[[#This Row],[Predviđeni trošak]]-Tablica6[[#This Row],[Stvarni trošak]]","v":{"v":0,"d":"0 kn"}},null,"Odvjetnik",null,null,{"$f":"Tablica12[[#This Row],[Predviđeni trošak]]-Tablica12[[#This Row],[Stvarni trošak]]","v":{"v":0,"d":"0 kn"}}]
[null,"Zbroj",{"$f":"SUBTOTAL(109,Tablica6[Predviđeni trošak])","v":{"v":0,"d":"0 kn"}},{"$f":"SUBTOTAL(109,Tablica6[Stvarni trošak])","v":{"v":0,"d":"0 kn"}},{"$f":"SUBTOTAL(109,Tablica6[Razlika])","v":{"v":0,"d":"0 kn"}},null,"Alimentacija",null,null,{"$f":"Tablica12[[#This Row],[Predviđeni trošak]]-Tablica12[[#This Row],[Stvarni trošak]]","v":{"v":0,"d":"0 kn"}}]
[{"$nulls":6},"Otplate zaloga ili ovrha",null,null,{"$f":"Tablica12[[#This Row],[Predviđeni trošak]]-Tablica12[[#This Row],[Stvarni trošak]]","v":{"v":0,"d":"0 kn"}}]
[null,"OSOBNA NJEGA","Predviđeni trošak","Stvarni trošak","Razlika",null,"Drugo",null,null,{"$f":"Tablica12[[#This Row],[Predviđeni trošak]]-Tablica12[[#This Row],[Stvarni trošak]]","v":{"v":0,"d":"0 kn"}}]
[null,"Liječnički troškovi",null,null,{"$f":"Tablica7[[#This Row],[Predviđeni trošak]]-Tablica7[[#This Row],[Stvarni trošak]]","v":{"v":0,"d":"0 kn"}},null,"Zbroj",{"$f":"SUBTOTAL(109,Tablica12[Predviđeni trošak])","v":{"v":0,"d":"0 kn"}},{"$f":"SUBTOTAL(109,Tablica12[Stvarni trošak])","v":{"v":0,"d":"0 kn"}},{"$f":"SUBTOTAL(109,Tablica12[Razlika])","v":{"v":0,"d":"0 kn"}}]
[null,"Frizura/manikura",null,null,{"$f":"Tablica7[[#This Row],[Predviđeni trošak]]-Tablica7[[#This Row],[Stvarni trošak]]","v":{"v":0,"d":"0 kn"}}]
[null,"Odjeća",null,null,{"$f":"Tablica7[[#This Row],[Predviđeni trošak]]-Tablica7[[#This Row],[Stvarni trošak]]","v":{"v":0,"d":"0 kn"}},null,"UKUPNI PREDVIĐENI TROŠKOVI",null,null,{"$f":"SUM(C23,C33,C40,C46,C54,C64,H22,H31,H38,H44,H50,H57)","v":{"v":2060,"d":"2,060 kn"}}]
[null,"Čišćenje odjeće",null,null,{"$f":"Tablica7[[#This Row],[Predviđeni trošak]]-Tablica7[[#This Row],[Stvarni trošak]]","v":{"v":0,"d":"0 kn"}}]
[null,"Teretana",null,null,{"$f":"Tablica7[[#This Row],[Predviđeni trošak]]-Tablica7[[#This Row],[Stvarni trošak]]","v":{"v":0,"d":"0 kn"}},null,"UKUPNI STVARNI TROŠKOVI",null,null,{"$f":"SUM(D23,D33,D40,D46,D54,D64,I22,I31,I38,I44,I50,I57)","v":{"v":2040,"d":"2,040 kn"}}]
[null,"Članarine ili naknade",null,null,{"$f":"Tablica7[[#This Row],[Predviđeni trošak]]-Tablica7[[#This Row],[Stvarni trošak]]","v":{"v":0,"d":"0 kn"}}]
[null,"Ostalo",null,null,{"$f":"Tablica7[[#This Row],[Predviđeni trošak]]-Tablica7[[#This Row],[Stvarni trošak]]","v":{"v":0,"d":"0 kn"}},null,"UKUPNA RAZLIKA",null,null,{"$f":"SUM(E23,E33,E40,E46,E54,E64,J22,J31,J38,J44,J50,J57)","v":{"v":20,"d":"20 kn"}}]
[null,"Zbroj",{"$f":"SUBTOTAL(109,Tablica7[Predviđeni trošak])","v":{"v":0,"d":"0 kn"}},{"$f":"SUBTOTAL(109,Tablica7[Stvarni trošak])","v":{"v":0,"d":"0 kn"}},{"$f":"SUBTOTAL(109,Tablica7[Razlika])","v":{"v":0,"d":"0 kn"}}]